bitfinex/quotes_BTCUSD_20250817
["timestamp","ask_amount","ask_price","bid_price","bid_amount"]
[1755409055389,8.94496954,118220.0,118210.0,0.00546]
[1755409055606,9.5495033,118220.0,118210.0,0.00546]
[1755409056595,9.02979078,118220.0,118210.0,0.17465042]
[1755409056815,9.5475033,118220.0,118210.0,0.17465042]
[1755409057021,9.02879078,118220.0,118210.0,0.17465042]
[1755409057302,8.58341241,118220.0,118210.0,0.17465042]
[1755409057528,8.84326867,118220.0,118210.0,0.17465042]
[1755409057758,8.82742304,118220.0,118210.0,0.17465042]
[1755409058211,8.48742304,118220.0,118210.0,0.17465042]
[1755409060131,8.7472793,118220.0,118210.0,0.17465042]
[1755409060322,8.22756678,118220.0,118210.0,0.17465042]
[1755409060544,8.57224428,118220.0,118210.0,0.17465042]
[1755409063043,8.83210054,118220.0,118210.0,0.17465042]
[1755409063688,9.00127665,118220.0,118210.0,0.17465042]
[1755409064127,8.48156413,118220.0,118210.0,0.00546]
[1755409064347,9.00127665,118220.0,118210.0,0.00546]
[1755409064573,8.45613113,118220.0,118210.0,0.17465042]
[1755409064811,8.97584365,118220.0,118210.0,0.17465042]
[1755409067258,8.97792365,118220.0,118210.0,0.17465042]
[1755409068241,9.24081991,118220.0,118210.0,0.0004]
[1755409068459,8.98096365,118220.0,118210.0,0.0004]
[1755409068731,9.32096365,118220.0,118210.0,0.0004]
[1755409070406,8.79613113,118220.0,118210.0,0.00546]
[1755409070629,8.80051047,118220.0,118210.0,0.17465042]
[1755409070852,9.06221565,118220.0,118210.0,0.17465042]
[1755409072686,8.76652923,118220.0,118210.0,0.17465042]
[1755409072892,9.06221565,118220.0,118210.0,0.17465042]
[1755409074466,9.06221565,118220.0,118210.0,0.00546]
[1755409074664,9.06429565,118220.0,118210.0,0.0004]
[1755409074877,9.14703689,118220.0,118210.0,0.00546]
[1755409075092,8.80051047,118220.0,118210.0,0.00546]
[1755409075323,9.14703689,118220.0,118210.0,0.00546]
[1755409076875,9.14703689,118220.0,118210.0,0.17465042]
[1755409084763,9.14913689,118220.0,118210.0,0.17168042]
[1755409086375,8.97996078,118220.0,118210.0,0.17168042]
[1755409088354,8.97996078,118220.0,118210.0,0.17138042]
[1755409088992,9.14913689,118220.0,118210.0,0.17138042]
[1755409089576,8.85056078,118220.0,118210.0,0.17138042]
[1755409089804,8.54655312,118220.0,118210.0,0.17443042]
[1755409090261,8.07711312,118220.0,118210.0,0.30387042]
[1755409090483,8.07711312,118220.0,118210.0,0.65039684]
[1755409090724,8.07711312,118220.0,118210.0,0.56370322]
[1755409091397,8.07269378,118220.0,118210.0,0.56370322]
[1755409091856,8.07169378,118220.0,118210.0,0.56370322]
[1755409092097,8.07169378,118220.0,118210.0,0.56670322]
[1755409092313,8.07169378,118220.0,118210.0,0.56870322]
[1755409092732,8.07169378,118220.0,118210.0,0.30687042]
[1755409093155,8.07169378,118220.0,118210.0,0.30887042]
[1755409093995,8.07169378,118220.0,118210.0,0.65531805]
[1755409094354,8.07169378,118220.0,118210.0,0.73777004]
[1755409104104,8.07169378,118220.0,118210.0,0.39132241]
[1755409104766,8.07169378,118220.0,118210.0,0.73777004]
[1755409106230,8.07169378,118220.0,118210.0,0.39132241]
[1755409106951,8.07169378,118220.0,118210.0,0.47613646]
[1755409107158,8.07169378,118220.0,118210.0,0.7401321]
[1755409109370,8.07169378,118220.0,118210.0,0.39368447]
[1755409109617,8.07169378,118220.0,118210.0,0.7401321]
[1755409114911,8.07169378,118220.0,118210.0,0.65345919]
[1755409115342,8.07169378,118220.0,118210.0,0.73828043]
[1755409119221,8.07169378,118220.0,118210.0,0.47850571]
[1755409119435,8.07169378,118220.0,118210.0,0.73828043]
[1755409122567,8.07381378,118220.0,118210.0,0.73828043]
[1755409123120,8.07169378,118220.0,118210.0,0.73828043]
[1755409127704,8.07381378,118220.0,118210.0,0.73828043]
[1755409128148,8.07169378,118220.0,118210.0,0.73828043]
[1755409129373,8.07169378,118220.0,118210.0,0.47850571]
[1755409129586,8.07381378,118220.0,118210.0,0.73828043]
[1755409132398,8.07381378,118220.0,118210.0,0.47850571]
[1755409132598,8.07678378,118220.0,118210.0,0.73314043]
[1755409133020,8.07678378,118220.0,118210.0,0.47336571]
[1755409133223,8.07678378,118220.0,118210.0,0.73314043]
[1755409133730,8.07678378,118220.0,118210.0,0.34392571]
[1755409133944,8.07678378,118220.0,118210.0,0.25910447]
[1755409134158,8.07678378,118220.0,118210.0,0.17429042]
[1755409134159,8.3365585,118220.0,118210.0,0.17429042]
[1755409134414,8.3365585,118220.0,118210.0,0.30361042]
[1755409134842,8.07678378,118220.0,118210.0,0.30361042]
[1755409135031,8.3365585,118220.0,118210.0,0.30361042]
[1755409135266,8.42137974,118220.0,118210.0,0.30361042]
[1755409135865,8.3365585,118220.0,118210.0,0.30361042]
[1755409137044,8.07678378,118220.0,118210.0,0.30361042]
[1755409137280,8.3365585,118220.0,118210.0,0.30361042]
[1755409138115,8.07678378,118220.0,118210.0,0.30361042]
[1755409138309,8.3365585,118220.0,118210.0,0.30361042]
[1755409139260,8.07678378,118220.0,118210.0,0.30361042]
[1755409139720,8.07678378,118220.0,118210.0,0.56338514]
[1755409140133,8.07678378,118220.0,118210.0,0.30361042]
[1755409140544,8.3365585,118220.0,118210.0,0.30361042]
[1755409140742,8.42137974,118220.0,118210.0,0.30361042]
[1755409140989,8.16160502,118220.0,118210.0,0.30361042]
[1755409141167,8.42137974,118220.0,118210.0,0.30361042]
[1755409141457,8.16160502,118220.0,118210.0,0.30361042]
[1755409141908,8.68115446,118220.0,118210.0,0.30365042]
[1755409142124,8.16160502,118220.0,118210.0,0.30365042]
[1755409142324,8.42137974,118220.0,118210.0,0.30365042]
[1755409143677,8.16160502,118220.0,118210.0,0.30365042]
[1755409143901,8.42137974,118220.0,118210.0,0.30365042]
[1755409144678,8.16160502,118220.0,118210.0,0.30365042]
[1755409162374,8.07381378,118220.0,118210.0,0.30570042]
[1755409162495,8.07169378,118220.0,118210.0,0.65528112]
[1755409162843,8.07169378,118220.0,118210.0,0.30876042]
[1755409164755,8.07169378,118220.0,118210.0,0.56859991]
[1755409165967,8.07370378,118220.0,118210.0,0.56859991]
[1755409166695,8.07169378,118220.0,118210.0,0.56859991]
[1755409167751,8.07370378,118220.0,118210.0,0.56859991]
[1755409169393,8.07169378,118220.0,118210.0,0.56859991]
[1755409169631,8.07169378,118220.0,118210.0,0.65341396]
[1755409170479,8.07169378,118220.0,118210.0,0.39357447]
[1755409170687,8.07370378,118220.0,118210.0,0.39357447]
[1755409171357,8.07370378,118220.0,118210.0,0.39051447]
[1755409171762,8.07678378,118220.0,118210.0,0.39051447]
[1755409171962,8.33662327,118220.0,118210.0,0.39051447]
[1755409172813,8.33662327,118220.0,118210.0,0.38846447]
[1755409182245,8.33662327,118220.0,118210.0,0.30365042]
[1755409182627,8.07678378,118220.0,118210.0,0.30365042]
[1755409182980,8.33662327,118220.0,118210.0,0.30365042]
[1755409183996,8.07678378,118220.0,118210.0,0.30365042]
[1755409184225,8.42144451,118220.0,118210.0,0.30365042]
[1755409187610,8.16160502,118220.0,118210.0,0.30365042]
[1755409188037,8.42144451,118220.0,118210.0,0.30365042]
[1755409189335,8.16160502,118220.0,118210.0,0.30365042]
[1755409189549,8.42144451,118220.0,118210.0,0.30365042]
[1755409190216,8.16160502,118220.0,118210.0,0.30365042]
[1755409190422,8.42144451,118220.0,118210.0,0.30365042]
[1755409191880,8.16160502,118220.0,118210.0,0.30365042]
[1755409192308,8.42144451,118220.0,118210.0,0.30365042]
[1755409195917,8.16160502,118220.0,118210.0,0.30365042]
[1755409196143,8.42144451,118220.0,118210.0,0.30365042]
[1755409196379,8.16160502,118220.0,118210.0,0.30365042]
[1755409196583,8.42144451,118220.0,118210.0,0.30365042]
[1755409199231,8.16160502,118220.0,118210.0,0.30365042]
[1755409199380,8.42144451,118220.0,118210.0,0.30365042]
[1755409201426,8.681284,118220.0,118210.0,0.30365042]
[1755409202040,8.85046011,118220.0,118210.0,0.30357042]
[1755409202248,8.97974011,118220.0,118210.0,0.30357042]
[1755409202462,8.835993,118220.0,118210.0,0.30357042]
[1755409202672,8.706713,118220.0,118210.0,0.30357042]
[1755409203219,8.706713,118220.0,118210.0,0.30057042]
[1755409203401,8.706713,118220.0,118210.0,0.29857042]
[1755409203598,8.706713,118220.0,118210.0,0.30057042]
[1755409203979,8.706713,118220.0,118210.0,0.30257042]
[1755409205188,8.87588911,118220.0,118210.0,0.30257042]
[1755409206668,8.706713,118220.0,118210.0,0.30257042]
[1755409209362,8.757553,118220.0,118210.0,0.30257042]
[1755409209817,8.706713,118220.0,118210.0,0.30257042]
[1755409218740,8.87588911,118220.0,118210.0,0.17329042]
[1755409218987,8.87588911,118220.0,118210.0,0.30257042]
[1755409219416,8.92672911,118220.0,118210.0,0.30257042]
[1755409219739,8.87588911,118220.0,118210.0,0.30257042]
[1755409235930,8.87588911,118220.0,118210.0,0.0041]
[1755409236102,8.87588911,118220.0,118210.0,0.13334]
[1755409238515,8.87588911,118220.0,118210.0,0.0041]
[1755409238725,8.87588911,118220.0,118210.0,0.13334]
[1755409240107,8.87588911,118220.0,118210.0,0.30253042]
[1755409243262,8.87588911,118220.0,118210.0,0.17329042]
[1755409243401,8.87588911,118220.0,118210.0,0.30249042]
[1755409244603,8.85046011,118220.0,118210.0,0.30249042]
[1755409245924,8.85046011,118220.0,118210.0,0.17329042]
[1755409246058,8.85046011,118220.0,118210.0,0.30249042]
[1755409246276,8.85046011,118220.0,118210.0,0.17329042]
[1755409246709,8.85046011,118220.0,118210.0,0.30249042]
[1755409247890,8.85046011,118220.0,118210.0,0.17329042]
[1755409248116,8.85046011,118220.0,118210.0,0.30249042]
[1755409248315,8.85046011,118220.0,118210.0,0.17329042]
[1755409248538,8.85046011,118220.0,118210.0,0.30249042]
[1755409249341,8.85046011,118220.0,118210.0,0.17329042]
[1755409249542,8.85046011,118220.0,118210.0,0.30249042]
[1755409251197,8.85046011,118220.0,118210.0,0.17329042]
[1755409251409,8.85046011,118220.0,118210.0,0.30249042]
[1755409252222,8.85046011,118220.0,118210.0,0.17329042]
[1755409252457,8.85046011,118220.0,118210.0,0.30249042]
[1755409253092,8.84738011,118220.0,118210.0,0.30458042]
[1755409253292,8.84738011,118220.0,118210.0,0.30754042]
[1755409253589,8.84537011,118220.0,118210.0,0.30754042]
[1755409255133,8.676194,118220.0,118210.0,0.17834042]
[1755409255338,8.676194,118220.0,118210.0,0.30754042]
[1755409255641,8.676194,118220.0,118210.0,0.17834042]
[1755409255821,8.676194,118220.0,118210.0,0.30754042]
[1755409257960,8.678274,118220.0,118210.0,0.30754042]
[1755409258291,8.678274,118220.0,118210.0,0.17834042]
[1755409258506,8.678274,118220.0,118210.0,0.30750042]
[1755409259530,8.678274,118220.0,118210.0,0.17834042]
[1755409259674,8.678274,118220.0,118210.0,0.30245042]
[1755409259861,8.681374,118220.0,118210.0,0.30245042]
[1755409261981,8.85055011,118220.0,118210.0,0.30245042]
[1755409263829,8.85055011,118220.0,118210.0,0.17329042]
[1755409263971,8.85055011,118220.0,118210.0,0.30245042]
[1755409266477,8.85055011,118220.0,118210.0,0.17329042]
[1755409266678,8.85055011,118220.0,118210.0,0.30245042]
[1755409266892,8.85055011,118220.0,118210.0,0.30045042]
[1755409267118,8.85055011,118220.0,118210.0,0.29945042]
[1755409267343,8.85055011,118220.0,118210.0,0.30045042]
[1755409267889,8.33087113,118220.0,118210.0,0.30045042]
[1755409268108,8.41635451,118220.0,118210.0,0.30578042]
[1755409269945,8.41840451,118220.0,118210.0,0.30578042]
[1755409270132,8.678244,118220.0,118210.0,0.30578042]
[1755409270340,8.678244,118220.0,118210.0,0.30255042]
[1755409271889,8.678244,118220.0,118210.0,0.17339042]
[1755409272035,8.678244,118220.0,118210.0,0.30251042]
[1755409272601,8.681204,118220.0,118210.0,0.30251042]
[1755409274856,8.681204,118220.0,118210.0,0.30041042]
[1755409277798,8.16152502,118220.0,118210.0,0.30041042]
[1755409278000,8.681204,118220.0,118210.0,0.30041042]
[1755409278587,8.16152502,118220.0,118210.0,0.30041042]
[1755409278794,8.681204,118220.0,118210.0,0.30041042]
[1755409284654,8.16152502,118220.0,118210.0,0.30041042]
[1755409284859,8.681204,118220.0,118210.0,0.30041042]
[1755409286282,8.85038011,118220.0,118210.0,0.30041042]
[1755409292669,8.33070113,118220.0,118210.0,0.30041042]
[1755409292900,8.15856502,118220.0,118210.0,0.30242042]
[1755409293097,8.33358327,118220.0,118210.0,0.30563042]
[1755409293468,8.33358327,118220.0,118210.0,0.30242042]
[1755409294065,8.59342276,118220.0,118210.0,0.30242042]
[1755409294276,8.59640276,118220.0,118210.0,0.30242042]
[1755409296579,8.59342276,118220.0,118210.0,0.30242042]
[1755409296788,8.678244,118220.0,118210.0,0.30242042]
[1755409297553,8.15856502,118220.0,118210.0,0.30563042]
[1755409297762,8.41840451,118220.0,118210.0,0.30563042]
[1755409299501,8.41840451,118220.0,118210.0,0.30242042]
[1755409300751,8.42138451,118220.0,118210.0,0.30242042]
[1755409300979,8.42138451,118220.0,118210.0,0.30041042]
[1755409304158,8.681224,118220.0,118210.0,0.30041042]
[1755409305076,8.706653,118220.0,118210.0,0.30041042]
[1755409309603,8.18697402,118220.0,118210.0,0.30041042]
[1755409309839,8.706653,118220.0,118210.0,0.30041042]
[1755409311359,8.44681351,118220.0,118210.0,0.30041042]
[1755409312661,8.18697402,118220.0,118210.0,0.30041042]
[1755409312881,8.44681351,118220.0,118210.0,0.30041042]
[1755409315815,8.44681351,118220.0,118210.0,0.25041042]
[1755409320592,8.18697402,118220.0,118210.0,0.25041042]
[1755409320795,8.44681351,118220.0,118210.0,0.25041042]
[1755409320980,8.18697402,118220.0,118210.0,0.25041042]
[1755409321285,8.44681351,118220.0,118210.0,0.25041042]
[1755409324042,8.18697402,118220.0,118210.0,0.25041042]
[1755409324269,8.44681351,118220.0,118210.0,0.25041042]
[1755409332916,8.44681351,118220.0,118210.0,0.24541042]
[1755409333342,8.87582911,118220.0,118210.0,0.11629042]
[1755409333553,8.87582911,118220.0,118210.0,0.24525042]
[1755409335437,9.00478911,118220.0,118210.0,0.24525042]
[1755409338683,8.48511013,118220.0,118210.0,0.24525042]
[1755409338906,9.00478911,118220.0,118210.0,0.24525042]
[1755409342244,9.05561911,118220.0,118210.0,0.24525042]
[1755409342451,9.00478911,118220.0,118210.0,0.24525042]
[1755409346330,8.48511013,118220.0,118210.0,0.24525042]
[1755409346585,8.74494962,118220.0,118210.0,0.24525042]
[1755409347414,8.61598962,118220.0,118210.0,0.24525042]
[1755409348359,8.87582911,118220.0,118210.0,0.24525042]
[1755409349416,9.00474911,118220.0,118210.0,0.24525042]
[1755409351498,8.87582911,118220.0,118210.0,0.24525042]
[1755409352458,8.92665911,118220.0,118210.0,0.24525042]
[1755409352671,8.87582911,118220.0,118210.0,0.24525042]
[1755409353393,9.00474911,118220.0,118210.0,0.24525042]
[1755409354360,8.74490962,118220.0,118210.0,0.24525042]
[1755409355408,8.35615013,118220.0,118210.0,0.24525042]
[1755409355597,8.61598962,118220.0,118210.0,0.24525042]
[1755409356137,8.61095962,118220.0,118210.0,0.24733042]
[1755409356349,8.18194402,118220.0,118210.0,0.25029042]
[1755409356563,8.09712278,118220.0,118210.0,0.25029042]
[1755409357728,8.35696227,118220.0,118210.0,0.25029042]
[1755409360237,8.09712278,118220.0,118210.0,0.25029042]
[1755409360491,8.35696227,118220.0,118210.0,0.25029042]
[1755409360864,8.44178351,118220.0,118210.0,0.25029042]
[1755409362831,8.18194402,118220.0,118210.0,0.25029042]
[1755409363013,8.44178351,118220.0,118210.0,0.25029042]
[1755409364363,8.44376351,118220.0,118210.0,0.25029042]
[1755409364704,8.44376351,118220.0,118210.0,0.24733042]
[1755409366561,8.61293962,118220.0,118210.0,0.24733042]
[1755409367818,8.35310013,118220.0,118210.0,0.24733042]
[1755409367974,8.61293962,118220.0,118210.0,0.24733042]
[1755409368193,8.44376351,118220.0,118210.0,0.24733042]
[1755409369496,8.35310013,118220.0,118210.0,0.24733042]
[1755409369693,8.61293962,118220.0,118210.0,0.24733042]
[1755409370306,8.61594962,118220.0,118210.0,0.24733042]
[1755409371249,8.61594962,118220.0,118210.0,0.24525042]
[1755409379030,8.44677351,118220.0,118210.0,0.24525042]
[1755409391275,8.18693402,118220.0,118210.0,0.24525042]
[1755409391582,8.44677351,118220.0,118210.0,0.24525042]
[1755409393114,8.18693402,118220.0,118210.0,0.24525042]
[1755409393341,8.44677351,118220.0,118210.0,0.24525042]
[1755409396020,8.44376351,118220.0,118210.0,0.24724042]
[1755409399152,8.44678351,118220.0,118210.0,0.24724042]
[1755409401718,8.44678351,118220.0,118210.0,0.24525042]
[1755409404858,8.18694402,118220.0,118210.0,0.24525042]
[1755409405048,8.44678351,118220.0,118210.0,0.24525042]
[1755409406957,8.18694402,118220.0,118210.0,0.24525042]
[1755409407212,8.44678351,118220.0,118210.0,0.24525042]
[1755409410204,8.18694402,118220.0,118210.0,0.24525042]
[1755409430194,8.44376351,118220.0,118210.0,0.24725042]
[1755409430504,8.18392402,118220.0,118210.0,0.24725042]
[1755409433313,8.18710402,118220.0,118210.0,0.24725042]
[1755409435936,8.18710402,118220.0,118210.0,0.24525042]
[1755409458054,8.44694351,118220.0,118210.0,0.24525042]
[1755409460572,8.18710402,118220.0,118210.0,0.24525042]
[1755409460788,8.44694351,118220.0,118210.0,0.24525042]
[1755409477167,8.42151451,118220.0,118210.0,0.24525042]
[1755409487402,8.16167502,118220.0,118210.0,0.24525042]
[1755409487551,8.42151451,118220.0,118210.0,0.24525042]
[1755409501006,8.16167502,118220.0,118210.0,0.24525042]
[1755409501230,8.42151451,118220.0,118210.0,0.24525042]
[1755409506088,8.47234451,118220.0,118210.0,0.24525042]
[1755409506298,8.42151451,118220.0,118210.0,0.24525042]
[1755409509970,8.15849502,118220.0,118210.0,0.24739042]
[1755409515790,8.41833451,118220.0,118210.0,0.24739042]
[1755409516345,8.42132451,118220.0,118210.0,0.24739042]
[1755409519363,8.42132451,118220.0,118210.0,0.24525042]
[1755409524268,8.16148502,118220.0,118210.0,0.24525042]
[1755409524499,8.42132451,118220.0,118210.0,0.24525042]
[1755409526310,8.16148502,118220.0,118210.0,0.24525042]
[1755409526743,8.07666378,118220.0,118210.0,0.24525042]
[1755409527697,8.33650327,118220.0,118210.0,0.24525042]
[1755409528799,8.07666378,118220.0,118210.0,0.24525042]
[1755409529001,8.33650327,118220.0,118210.0,0.24525042]
[1755409534264,8.07666378,118220.0,118210.0,0.24525042]
[1755409534490,8.42132451,118220.0,118210.0,0.24525042]
[1755409535032,8.16148502,118220.0,118210.0,0.24525042]
[1755409535253,8.42132451,118220.0,118210.0,0.24525042]
[1755409539022,8.16148502,118220.0,118210.0,0.24525042]
[1755409539250,8.42132451,118220.0,118210.0,0.24525042]
[1755409544852,8.41632451,118220.0,118210.0,0.24525042]
[1755409554152,8.15648502,118220.0,118210.0,0.24525042]
[1755409555432,8.41632451,118220.0,118210.0,0.24525042]
[1755409556360,8.15648502,118220.0,118210.0,0.24525042]
[1755409561489,8.15648502,118220.0,118210.0,0.11629042]
[1755409561703,8.41632451,118220.0,118210.0,0.24469042]
[1755409563241,8.46715451,118220.0,118210.0,0.24469042]
[1755409563382,8.41632451,118220.0,118210.0,0.24469042]
[1755409564736,8.58550062,118220.0,118210.0,0.24469042]
[1755409564955,8.84534011,118220.0,118210.0,0.24469042]
[1755409565631,9.41600318,118220.0,118210.0,0.002]
[1755409565855,9.48270205,118220.0,118210.0,0.002]
[1755409566113,9.76797454,118220.0,118210.0,0.002]
[1755409566329,9.50813505,118220.0,118210.0,0.002]
[1755409567822,9.90813505,118220.0,118210.0,0.002]
[1755409570347,14.73851805,118220.0,118210.0,0.002]
[1755409573707,14.72264918,118220.0,118210.0,0.002]
[1755409573916,14.73848519,118220.0,118210.0,0.002]
[1755409574320,14.73848483,118220.0,118210.0,0.002]
[1755409580068,14.73848483,118220.0,118210.0,0.00129182]
[1755409581632,0.25983949,118200.0,118190.0,0.1795009]
[1755409581887,0.28544579,118200.0,118190.0,0.1814509]
[1755409582524,0.0339066,118200.0,118190.0,0.1814509]
[1755409582738,0.29374609,118200.0,118190.0,0.1814509]
[1755409582956,0.29374609,118200.0,118190.0,0.1834509]
[1755409584238,0.29374609,118200.0,118190.0,0.1864509]
[1755409585921,0.0339066,118200.0,118190.0,0.1864509]
[1755409586135,0.0339066,118200.0,118190.0,0.44629039]
[1755409586349,0.0256063,118200.0,118190.0,0.44629039]
[1755409586562,0.62527349,118210.0,118200.0,0.16920473]
[1755409586783,0.63355182,118210.0,118200.0,0.17424473]
[1755409586994,0.37371233,118210.0,118200.0,0.17424473]
[1755409587215,0.63355182,118210.0,118200.0,0.17424473]
[1755409587970,0.63355182,118210.0,118200.0,0.17524473]
[1755409588152,0.71837306,118210.0,118200.0,0.17524473]
[1755409588481,0.71837306,118210.0,118200.0,0.30464473]
[1755409588692,0.43309957,118210.0,118200.0,0.30464473]
[1755409588902,0.69293906,118210.0,118200.0,0.30464473]
[1755409589379,0.69491906,118210.0,118200.0,0.30464473]
[1755409590958,0.69491906,118210.0,118200.0,0.17624473]
[1755409591683,0.43507957,118210.0,118200.0,0.17624473]
[1755409591894,0.69491906,118210.0,118200.0,0.17624473]
[1755409592047,0.43507957,118210.0,118200.0,0.17624473]
[1755409592228,0.69491906,118210.0,118200.0,0.17624473]
[1755409592657,0.43507957,118210.0,118200.0,0.17624473]
[1755409592861,0.69491906,118210.0,118200.0,0.17624473]
[1755409595188,0.43507957,118210.0,118200.0,0.17624473]
[1755409595644,0.69491906,118210.0,118200.0,0.17624473]
[1755409596159,0.43507957,118210.0,118200.0,0.17624473]
[1755409596392,0.69491906,118210.0,118200.0,0.17624473]
[1755409596600,0.43507957,118210.0,118200.0,0.17624473]
[1755409596815,0.61009782,118210.0,118200.0,0.17624473]
[1755409598092,0.35025833,118210.0,118200.0,0.17624473]
[1755409598307,0.61009782,118210.0,118200.0,0.17624473]
[1755409599498,0.35025833,118210.0,118200.0,0.17624473]
[1755409599698,0.61009782,118210.0,118200.0,0.17624473]
[1755409600012,0.69491906,118210.0,118200.0,0.17624473]
[1755409602457,0.43507957,118210.0,118200.0,0.17624473]
[1755409602666,0.69491906,118210.0,118200.0,0.17624473]
[1755409604686,0.69491906,118210.0,118200.0,0.17315473]
[1755409604878,0.82331906,118210.0,118200.0,0.17315473]
[1755409606958,0.56347957,118210.0,118200.0,0.17315473]
[1755409607155,0.82331906,118210.0,118200.0,0.17315473]
[1755409607935,0.56347957,118210.0,118200.0,0.17315473]
[1755409608138,0.82331906,118210.0,118200.0,0.17315473]
[1755409610806,0.82331906,118210.0,118200.0,0.17640473]
[1755409611070,0.43507957,118210.0,118200.0,0.17640473]
[1755409611287,0.34,118210.0,118200.0,0.43624422]
[1755409611500,8.17694083,118220.0,118210.0,0.16919042]
[1755409611501,8.09212678,118220.0,118210.0,0.16919042]
[1755409611678,8.09212678,118220.0,118210.0,0.29970042]
[1755409611983,8.06669378,118220.0,118210.0,0.30295042]
[1755409612624,8.07506986,118220.0,118210.0,0.56278991]
[1755409612809,8.1598911,118220.0,118210.0,0.56278991]
[1755409613276,8.1598911,118220.0,118210.0,0.30295042]
[1755409615285,8.07506986,118220.0,118210.0,0.30295042]
[1755409616628,8.07506986,118220.0,118210.0,0.30595042]
[1755409617422,8.07506986,118220.0,118210.0,0.30795042]
[1755409624520,8.07714986,118220.0,118210.0,0.30795042]
[1755409627495,8.07714986,118220.0,118210.0,0.56778991]
[1755409628606,8.1619711,118220.0,118210.0,0.56778991]
[1755409631253,8.1619711,118220.0,118210.0,0.30795042]
[1755409633532,8.1619711,118220.0,118210.0,0.56778991]
[1755409634406,8.1619711,118220.0,118210.0,0.30795042]
[1755409634962,8.1619711,118220.0,118210.0,0.30470042]
[1755409643717,8.1619711,118220.0,118210.0,0.56453991]
[1755409647008,8.1619711,118220.0,118210.0,0.30470042]
[1755409647225,8.1619711,118220.0,118210.0,0.56453991]
[1755409647820,8.1649711,118220.0,118210.0,0.56453991]
[1755409649277,8.1619711,118220.0,118210.0,0.56453991]
[1755409650272,8.1619711,118220.0,118210.0,0.30470042]
[1755409650712,8.1649711,118220.0,118210.0,0.30470042]
[1755409653535,8.1619711,118220.0,118210.0,0.30470042]
[1755409654295,8.1649911,118220.0,118210.0,0.30470042]
[1755409658744,8.1649911,118220.0,118210.0,0.56453991]
[1755409658996,8.1649911,118220.0,118210.0,0.30470042]
[1755409661949,8.1649911,118220.0,118210.0,0.30255042]
[1755409675834,8.15661502,118220.0,118210.0,0.30255042]
[1755409676042,8.06669378,118220.0,118210.0,0.56754991]
[1755409683396,8.06883378,118220.0,118210.0,0.56754991]
[1755409689360,8.06669378,118220.0,118210.0,0.91220345]
[1755409690044,8.06669378,118220.0,118210.0,0.93762645]
[1755409693858,8.06669378,118220.0,118210.0,0.41794747]
[1755409694274,8.06669378,118220.0,118210.0,0.67778696]
[1755409695341,8.06669378,118220.0,118210.0,0.50276871]
[1755409695549,8.06669378,118220.0,118210.0,1.02244769]
[1755409695764,8.06669378,118220.0,118210.0,0.7626082]
[1755409696595,8.06669378,118220.0,118210.0,0.67778696]
[1755409703329,8.06883378,118220.0,118210.0,0.67778696]
[1755409709265,8.06883378,118220.0,118210.0,0.67459696]
[1755409722744,8.06883378,118220.0,118210.0,0.41475747]
[1755409722937,8.06883378,118220.0,118210.0,0.67459696]
[1755409736003,8.06883378,118220.0,118210.0,0.41475747]
[1755409736204,8.06883378,118220.0,118210.0,0.67459696]
[1755409738838,8.06883378,118220.0,118210.0,0.70046942]
[1755409739045,8.06883378,118220.0,118210.0,0.70350942]
[1755409739469,8.06883378,118220.0,118210.0,0.70046942]
[1755409740009,8.06883378,118220.0,118210.0,0.44062993]
[1755409740210,8.06883378,118220.0,118210.0,0.67459696]
[1755409743484,8.07190378,118220.0,118210.0,0.67459696]
[1755409744216,8.06883378,118220.0,118210.0,0.67459696]
[1755409746016,8.06883378,118220.0,118210.0,0.41475747]
[1755409746225,8.06883378,118220.0,118210.0,0.67459696]
[1755409746644,8.07190378,118220.0,118210.0,0.67459696]
[1755409747299,8.07190378,118220.0,118210.0,0.67262696]
[1755409750947,8.07190378,118220.0,118210.0,0.41278747]
[1755409751159,8.07190378,118220.0,118210.0,0.67262696]
[1755409752152,8.06669378,118220.0,118210.0,0.93770645]
[1755409753193,8.06669378,118220.0,118210.0,0.93470645]
[1755409753400,8.06669378,118220.0,118210.0,0.93270645]
[1755409753588,8.06669378,118220.0,118210.0,0.41902747]
[1755409753793,8.06669378,118220.0,118210.0,0.93870645]
[1755409754400,8.06669378,118220.0,118210.0,0.50384871]
[1755409754608,8.06669378,118220.0,118210.0,1.02352769]
[1755409754831,8.06669378,118220.0,118210.0,1.02752769]
[1755409755060,7.31898425,118220.0,118210.0,1.6698162]
[1755409755456,7.16880783,118220.0,118210.0,1.40997671]
[1755409755708,6.90683723,118220.0,118210.0,1.40997671]
[1755409755896,6.72113116,118220.0,118210.0,1.6698162]
[1755409756130,6.5789249,118220.0,118210.0,1.6698162]
[1755409756348,6.42576335,118220.0,118210.0,1.40997671]
[1755409756542,6.21100693,118220.0,118210.0,1.40997671]
[1755409756754,6.03536682,118220.0,118210.0,1.40997671]
[1755409756952,5.94675829,118220.0,118210.0,1.40997671]
[1755409757187,5.84886314,118220.0,118210.0,1.40997671]
[1755409757393,5.57306204,118220.0,118210.0,1.40997671]
[1755409757594,5.57306204,118220.0,118210.0,1.39252769]
[1755409764090,5.57306204,118220.0,118210.0,1.65922769]
[1755409767701,5.57516204,118220.0,118210.0,1.65605769]
[1755409767907,5.57823204,118220.0,118210.0,1.65398769]
[1755409768104,5.57823204,118220.0,118210.0,1.10930871]
[1755409768348,5.57823204,118220.0,118210.0,1.62898769]
[1755409770123,5.57823204,118220.0,118210.0,1.36228769]
[1755409771130,5.57516204,118220.0,118210.0,1.36435769]
[1755409771884,5.18841458,118220.0,118210.0,1.36752769]
[1755409779582,5.19055458,118220.0,118210.0,1.36752769]
[1755409781261,5.18841458,118220.0,118210.0,1.36752769]
[1755409781472,4.78261429,118220.0,118210.0,1.39252769]
[1755409782093,4.39714688,118220.0,118210.0,1.39252769]
[1755409782935,4.39714688,118220.0,118210.0,1.38935769]
[1755409783191,4.39928688,118220.0,118210.0,1.38728769]
[1755409787946,4.40234688,118220.0,118210.0,1.23392769]
[1755409788124,4.40234688,118220.0,118210.0,1.1024482]
[1755409789165,4.40234688,118220.0,118210.0,1.36228769]
[1755409791984,4.39714688,118220.0,118210.0,1.36437769]
[1755409792189,3.75759757,118220.0,118210.0,1.6948162]
[1755409792409,3.59921042,118220.0,118210.0,1.6948162]
[1755409792623,3.48113835,118220.0,118210.0,1.6948162]
[1755409792834,3.23545961,118220.0,118210.0,1.6908162]
[1755409793065,3.05941635,118220.0,118210.0,1.6958162]
[1755409793271,2.88034658,118220.0,118210.0,1.6958162]
[1755409793474,2.69146741,118220.0,118210.0,1.6848162]
[1755409793651,2.54795407,118220.0,118210.0,1.6848162]
[1755409793860,2.45482308,118220.0,118210.0,1.6908162]
[1755409794069,2.23545826,118220.0,118210.0,1.6848162]
[1755409794265,2.12988376,118220.0,118210.0,1.6848162]
[1755409794486,1.92719129,118220.0,118210.0,1.7008162]
[1755409794728,1.92719129,118220.0,118210.0,1.2675209]
[1755409796719,1.92719129,118220.0,118210.0,1.5342209]
[1755409799709,1.92933129,118220.0,118210.0,1.5310709]
[1755409800183,1.92933129,118220.0,118210.0,1.5342209]
[1755409800381,1.92933129,118220.0,118210.0,1.15599773]